[Event "Titled Tuesday Blitz August 22 Late 2023"]
[White "Souleidis, Georgios"]
[Black "chessmateto"]
[WhiteFideId "4206827"]
[WhiteElo "2552"]
[BlackElo "2421"]
[Result "0-1"]
[Round "8"]
[TimeControl "180+1"]
[Date "2023.08.22"]
[WhiteClock "0:00:00"]
[BlackClock "0:00:11"]
[Board "95"]

1. e4 {[%clk 0:03:00]}  c6 {[%clk 0:02:59]} 2. d4 {[%clk 0:02:57]}  d5 {[%clk 0:03:00]} 3. e5 {[%clk 0:02:57]}  Bf5 {[%clk 0:02:59]} 4. h4 {[%clk 0:02:57]}  h6 {[%clk 0:02:59]} 5. g4 {[%clk 0:02:57]}  Be4 {[%clk 0:03:00]} 6. f3 {[%clk 0:02:57]}  Bh7 {[%clk 0:02:59]} 7. e6 {[%clk 0:02:58]}  Qd6 {[%clk 0:02:59]} 8. exf7+ {[%clk 0:02:58]}  Kxf7 {[%clk 0:03:00]} 9. f4 {[%clk 0:02:54]}  Nf6 {[%clk 0:03:00]} 10. Nc3 {[%clk 0:02:48]}  h5 {[%clk 0:02:53]} 11. g5 {[%clk 0:02:46]}  Ng4 {[%clk 0:02:41]} 12. Nf3 {[%clk 0:02:43]}  Nd7 {[%clk 0:02:30]} 13. Ne5+ {[%clk 0:02:39]}  Ndxe5 {[%clk 0:02:14]} 14. fxe5 {[%clk 0:02:40]}  Qe6 {[%clk 0:02:01]} 15. Bd3 {[%clk 0:02:37]}  Kg8 {[%clk 0:01:53]} 16. Bf4 {[%clk 0:02:28]}  Bf5 {[%clk 0:01:36]} 17. Qd2 {[%clk 0:02:20]}  g6 {[%clk 0:01:34]} 18. O-O {[%clk 0:02:08]}  Bg7 {[%clk 0:01:26]} 19. Bg3 {[%clk 0:02:02]}  Rf8 {[%clk 0:01:24]} 20. Ne2 {[%clk 0:01:54]}  c5 {[%clk 0:01:07]} 21. c3 {[%clk 0:01:49]}  Qb6 {[%clk 0:01:05]} 22. Bxf5 {[%clk 0:01:24]}  gxf5 {[%clk 0:00:57]} 23. Nf4 {[%clk 0:01:21]}  cxd4 {[%clk 0:00:45]} 24. cxd4 {[%clk 0:00:27]}  Bxe5 {[%clk 0:00:45]} 25. Nxd5 {[%clk 0:00:27]}  Qxd4+ {[%clk 0:00:37]} 26. Qxd4 {[%clk 0:00:26]}  Bxd4+ {[%clk 0:00:38]} 27. Kh1 {[%clk 0:00:26]}  e5 {[%clk 0:00:35]} 28. Ne7+ {[%clk 0:00:25]}  Kh7 {[%clk 0:00:28]} 29. Nxf5 {[%clk 0:00:25]}  Rf7 {[%clk 0:00:19]} 30. Rac1 {[%clk 0:00:23]}  Rhf8 {[%clk 0:00:19]} 31. g6+ {[%clk 0:00:14]}  Kxg6 {[%clk 0:00:19]} 32. Ne7+ {[%clk 0:00:14]}  Kh7 {[%clk 0:00:17]} 33. Rxf7+ {[%clk 0:00:14]}  Rxf7 {[%clk 0:00:18]} 34. Nd5 {[%clk 0:00:15]}  Ne3 {[%clk 0:00:17]} 35. Nxe3 {[%clk 0:00:14]}  Bxe3 {[%clk 0:00:18]} 36. Rc8 {[%clk 0:00:14]}  Bd4 {[%clk 0:00:16]} 37. Re8 {[%clk 0:00:13]}  Bxb2 {[%clk 0:00:16]} 38. Bxe5 {[%clk 0:00:13]}  Bxe5 {[%clk 0:00:14]} 39. Rxe5 {[%clk 0:00:14]}  Kh6 {[%clk 0:00:12]} 40. Re6+ {[%clk 0:00:14]}  Kg7 {[%clk 0:00:12]} 41. Re5 {[%clk 0:00:15]}  Kg6 {[%clk 0:00:12]} 42. Re6+ {[%clk 0:00:13]}  Rf6 {[%clk 0:00:12]} 43. Re7 {[%clk 0:00:13]}  Rb6 {[%clk 0:00:11]} 44. Re5 {[%clk 0:00:13]}  Rb1+ {[%clk 0:00:10]} 45. Kg2 {[%clk 0:00:13]}  Rb2+ {[%clk 0:00:11]} 46. Kg3 {[%clk 0:00:14]}  Rxa2 {[%clk 0:00:11]} 47. Re7 {[%clk 0:00:10]}  b5 {[%clk 0:00:11]} 48. Kf4 {[%clk 0:00:09]}  b4 {[%clk 0:00:10]} 49. Re6+ {[%clk 0:00:08]}  Kf7 {[%clk 0:00:10]} 50. Rc6 {[%clk 0:00:08]}  b3 {[%clk 0:00:10]} 51. Rc3 {[%clk 0:00:06]}  Ra3 {[%clk 0:00:10]} 52. Kf5 {[%clk 0:00:04]}  a5 {[%clk 0:00:10]} 53. Rc7+ {[%clk 0:00:05]}  Ke8 {[%clk 0:00:09]} 54. Ke6 {[%clk 0:00:05]}  Kd8 {[%clk 0:00:10]} 55. Rb7 {[%clk 0:00:04]}  a4 {[%clk 0:00:10]} 56. Kd6 {[%clk 0:00:04]}  Kc8 {[%clk 0:00:11]} 57. Kc6 {[%clk 0:00:05]}  Ra1 {[%clk 0:00:11]} 58. Rc7+ {[%clk 0:00:05]}  Kd8 {[%clk 0:00:10]} 59. Rd7+ {[%clk 0:00:06]}  Ke8 {[%clk 0:00:11]} 60. Rb7 {[%clk 0:00:06]}  Rc1+ {[%clk 0:00:11]} 61. Kd5 {[%clk 0:00:06]}  a3 {[%clk 0:00:10]} 62. Rb8+ {[%clk 0:00:05]}  Kf7 {[%clk 0:00:10]} 63. Rb7+ {[%clk 0:00:05]}  Kf6 {[%clk 0:00:11]} 64. Rxb3 {[%clk 0:00:00]}  a2 {[%clk 0:00:11]} 0-1


[Site "https://www.chess.com"]

[Event "Titled Tuesday Blitz August 22 Late 2023"]
[White "matenitian"]
[Black "Ronka, Erik"]
[BlackFideId "505080"]
[WhiteElo "2522"]
[BlackElo "2416"]
[Result "0-1"]
[Round "8"]
[TimeControl "180+1"]
[Date "2023.08.22"]
[WhiteClock "0:00:08"]
[BlackClock "0:00:19"]
[Board "97"]

1. e4 {[%clk 0:02:57]}  c5 {[%clk 0:02:59]} 2. Nc3 {[%clk 0:02:56]}  e6 {[%clk 0:02:59]} 3. Nf3 {[%clk 0:02:55]}  d6 {[%clk 0:02:59]} 4. g3 {[%clk 0:02:54]}  Nf6 {[%clk 0:02:58]} 5. Bg2 {[%clk 0:02:54]}  Be7 {[%clk 0:02:59]} 6. d3 {[%clk 0:02:53]}  O-O {[%clk 0:02:59]} 7. O-O {[%clk 0:02:53]}  Nc6 {[%clk 0:02:59]} 8. Bd2 {[%clk 0:02:49]}  Rb8 {[%clk 0:02:59]} 9. a4 {[%clk 0:02:48]}  a6 {[%clk 0:02:58]} 10. Ng5 {[%clk 0:02:47]}  Bd7 {[%clk 0:02:51]} 11. f4 {[%clk 0:02:46]}  b5 {[%clk 0:02:50]} 12. axb5 {[%clk 0:02:44]}  axb5 {[%clk 0:02:51]} 13. f5 {[%clk 0:02:42]}  b4 {[%clk 0:02:44]} 14. Ne2 {[%clk 0:02:32]}  exf5 {[%clk 0:02:39]} 15. exf5 {[%clk 0:02:29]}  Ne5 {[%clk 0:02:39]} 16. d4 {[%clk 0:02:14]}  Nc4 {[%clk 0:02:33]} 17. Bc1 {[%clk 0:02:13]}  Qc7 {[%clk 0:02:23]} 18. b3 {[%clk 0:01:54]}  Nb6 {[%clk 0:02:18]} 19. Kh1 {[%clk 0:01:53]}  Bc6 {[%clk 0:02:12]} 20. Nf4 {[%clk 0:01:49]}  Bxg2+ {[%clk 0:02:11]} 21. Nxg2 {[%clk 0:01:44]}  Nbd5 {[%clk 0:02:05]} 22. Qd3 {[%clk 0:01:09]}  Rbc8 {[%clk 0:01:48]} 23. Rf2 {[%clk 0:00:58]}  Rfe8 {[%clk 0:01:42]} 24. Bb2 {[%clk 0:00:55]}  c4 {[%clk 0:01:36]} 25. bxc4 {[%clk 0:00:50]}  Qxc4 {[%clk 0:01:37]} 26. Qxc4 {[%clk 0:00:40]}  Rxc4 {[%clk 0:01:38]} 27. Nf3 {[%clk 0:00:30]}  Rec8 {[%clk 0:01:34]} 28. Nfe1 {[%clk 0:00:27]}  h6 {[%clk 0:01:30]} 29. h3 {[%clk 0:00:26]}  Ne4 {[%clk 0:01:27]} 30. Rf3 {[%clk 0:00:22]}  Bf6 {[%clk 0:01:18]} 31. Rd1 {[%clk 0:00:20]}  Ndc3 {[%clk 0:01:10]} 32. Rdd3 {[%clk 0:00:19]}  Rxd4 {[%clk 0:01:08]} 33. Kh2 {[%clk 0:00:19]}  Rxd3 {[%clk 0:00:56]} 34. Nxd3 {[%clk 0:00:19]}  Nd5 {[%clk 0:00:46]} 35. Bxf6 {[%clk 0:00:16]}  Nexf6 {[%clk 0:00:47]} 36. Nge1 {[%clk 0:00:14]}  Rc3 {[%clk 0:00:42]} 37. Rf2 {[%clk 0:00:14]}  Ne3 {[%clk 0:00:33]} 38. Re2 {[%clk 0:00:14]}  Nxf5 {[%clk 0:00:31]} 39. g4 {[%clk 0:00:12]}  Nd4 {[%clk 0:00:30]} 40. Re7 {[%clk 0:00:12]}  Nxc2 {[%clk 0:00:29]} 41. Rb7 {[%clk 0:00:11]}  Nxe1 {[%clk 0:00:28]} 42. Nxe1 {[%clk 0:00:12]}  b3 {[%clk 0:00:29]} 43. Kg1 {[%clk 0:00:12]}  Ne4 {[%clk 0:00:26]} 44. Kf1 {[%clk 0:00:12]}  Rc1 {[%clk 0:00:19]} 45. Ke2 {[%clk 0:00:11]}  Nc5 {[%clk 0:00:19]} 46. Rb8+ {[%clk 0:00:10]}  Kh7 {[%clk 0:00:19]} 47. Nd3 {[%clk 0:00:10]}  Rc2+ {[%clk 0:00:19]} 48. Ke3 {[%clk 0:00:08]}  Rc3 {[%clk 0:00:19]} 0-1


[Site "https://www.chess.com"]

[Event "Titled Tuesday Blitz August 22 Late 2023"]
[White "Lawson, Eric"]
[Black "Melikhov, Evgeny V."]
[WhiteFideId "2604116"]
[BlackFideId "4122046"]
[WhiteElo "2513"]
[BlackElo "2392"]
[Result "1-0"]
[Round "8"]
[TimeControl "180+1"]
[Date "2023.08.22"]
[WhiteClock "0:00:59"]
[BlackClock "0:00:11"]
[Board "100"]

1. e4 {[%clk 0:03:00]}  e5 {[%clk 0:02:59]} 2. Nf3 {[%clk 0:03:00]}  Nc6 {[%clk 0:02:59]} 3. Bc4 {[%clk 0:03:00]}  Nf6 {[%clk 0:02:59]} 4. d3 {[%clk 0:02:59]}  Be7 {[%clk 0:02:58]} 5. O-O {[%clk 0:02:56]}  O-O {[%clk 0:02:56]} 6. Nc3 {[%clk 0:02:56]}  d6 {[%clk 0:02:56]} 7. a4 {[%clk 0:02:56]}  a5 {[%clk 0:02:55]} 8. Bd2 {[%clk 0:02:47]}  Be6 {[%clk 0:02:54]} 9. Nd5 {[%clk 0:02:45]}  Bxd5 {[%clk 0:02:54]} 10. exd5 {[%clk 0:02:45]}  Nd4 {[%clk 0:02:53]} 11. Nxd4 {[%clk 0:02:41]}  exd4 {[%clk 0:02:54]} 12. Qf3 {[%clk 0:02:40]}  Nd7 {[%clk 0:02:53]} 13. Rfe1 {[%clk 0:02:33]}  Bf6 {[%clk 0:02:50]} 14. Qh5 {[%clk 0:02:24]}  g6 {[%clk 0:02:48]} 15. Qh3 {[%clk 0:02:22]}  Bg7 {[%clk 0:02:47]} 16. Re4 {[%clk 0:02:20]}  f5 {[%clk 0:02:28]} 17. Re6 {[%clk 0:02:19]}  Nc5 {[%clk 0:02:23]} 18. Re2 {[%clk 0:02:14]}  Qf6 {[%clk 0:02:17]} 19. Bb5 {[%clk 0:02:11]}  b6 {[%clk 0:02:13]} 20. Bc6 {[%clk 0:02:10]}  Rad8 {[%clk 0:02:10]} 21. f4 {[%clk 0:02:09]}  Rf7 {[%clk 0:01:53]} 22. Rae1 {[%clk 0:02:08]}  Bf8 {[%clk 0:01:52]} 23. Qf3 {[%clk 0:01:47]}  Re7 {[%clk 0:01:51]} 24. Rxe7 {[%clk 0:01:44]}  Bxe7 {[%clk 0:01:51]} 25. Re2 {[%clk 0:01:43]}  Rf8 {[%clk 0:01:50]} 26. Be1 {[%clk 0:01:43]}  Bd8 {[%clk 0:01:47]} 27. Bf2 {[%clk 0:01:43]}  Rf7 {[%clk 0:01:45]} 28. Re8+ {[%clk 0:01:43]}  Kg7 {[%clk 0:01:45]} 29. Qe2 {[%clk 0:01:43]}  Re7 {[%clk 0:01:37]} 30. Rxe7+ {[%clk 0:01:41]}  Bxe7 {[%clk 0:01:38]} 31. Kf1 {[%clk 0:01:39]}  Kf8 {[%clk 0:01:30]} 32. Ke1 {[%clk 0:01:37]}  h6 {[%clk 0:01:21]} 33. Kd1 {[%clk 0:01:31]}  g5 {[%clk 0:01:20]} 34. g3 {[%clk 0:01:30]}  g4 {[%clk 0:01:19]} 35. Qe1 {[%clk 0:01:28]}  h5 {[%clk 0:01:17]} 36. Qg1 {[%clk 0:01:27]}  Qg7 {[%clk 0:01:12]} 37. Bxd4 {[%clk 0:01:27]}  Bf6 {[%clk 0:01:12]} 38. Bxf6 {[%clk 0:01:25]}  Qxf6 {[%clk 0:01:12]} 39. Kc1 {[%clk 0:01:25]}  Qe7 {[%clk 0:01:12]} 40. Qf2 {[%clk 0:01:24]}  Kf7 {[%clk 0:01:02]} 41. Kd2 {[%clk 0:01:23]}  Qf6 {[%clk 0:00:50]} 42. c3 {[%clk 0:01:23]}  Qe7 {[%clk 0:00:30]} 43. b4 {[%clk 0:01:04]}  axb4 {[%clk 0:00:29]} 44. cxb4 {[%clk 0:01:05]}  Na6 {[%clk 0:00:22]} 45. Qd4 {[%clk 0:01:04]}  Qf6 {[%clk 0:00:19]} 46. Qxf6+ {[%clk 0:01:04]}  Kxf6 {[%clk 0:00:20]} 47. Kc3 {[%clk 0:01:04]}  Nb8 {[%clk 0:00:17]} 48. a5 {[%clk 0:00:58]}  bxa5 {[%clk 0:00:11]} 49. bxa5 {[%clk 0:00:59]} 1-0


[Site "https://www.chess.com"]

[Event "Titled Tuesday Blitz August 22 Late 2023"]
[White "Nurgaliyeva, Zarina"]
[Black "KorolDimitriy75"]
[WhiteFideId "13730096"]
[WhiteElo "2507"]
[BlackElo "2357"]
[Result "1-0"]
[Round "8"]
[TimeControl "180+1"]
[Date "2023.08.22"]
[WhiteClock "0:00:07"]
[BlackClock "0:00:00"]
[Board "102"]

1. e4 {[%clk 0:03:00]}  c5 {[%clk 0:03:00]} 2. Nf3 {[%clk 0:03:00]}  d6 {[%clk 0:03:00]} 3. Bb5+ {[%clk 0:02:59]}  Nd7 {[%clk 0:03:00]} 4. d4 {[%clk 0:02:59]}  Nf6 {[%clk 0:03:00]} 5. e5 {[%clk 0:02:58]}  cxd4 {[%clk 0:03:00]} 6. exf6 {[%clk 0:02:52]}  Qa5+ {[%clk 0:02:59]} 7. c3 {[%clk 0:02:52]}  Qxb5 {[%clk 0:02:58]} 8. fxe7 {[%clk 0:02:53]}  Bxe7 {[%clk 0:02:54]} 9. Nxd4 {[%clk 0:02:53]}  Qe5+ {[%clk 0:02:35]} 10. Qe2 {[%clk 0:02:51]}  O-O {[%clk 0:02:27]} 11. O-O {[%clk 0:02:40]}  Qxe2 {[%clk 0:02:01]} 12. Nxe2 {[%clk 0:02:40]}  Nf6 {[%clk 0:02:01]} 13. Rd1 {[%clk 0:02:38]}  d5 {[%clk 0:02:00]} 14. Bg5 {[%clk 0:02:35]}  Be6 {[%clk 0:01:48]} 15. Nd2 {[%clk 0:02:34]}  Rfe8 {[%clk 0:01:32]} 16. Nb3 {[%clk 0:01:47]}  Rad8 {[%clk 0:01:13]} 17. Ned4 {[%clk 0:01:36]}  h6 {[%clk 0:01:04]} 18. Bf4 {[%clk 0:01:31]}  a6 {[%clk 0:00:57]} 19. a4 {[%clk 0:01:03]}  Ne4 {[%clk 0:00:52]} 20. Bc7 {[%clk 0:00:47]}  Rc8 {[%clk 0:00:48]} 21. Bb6 {[%clk 0:00:46]}  Nd6 {[%clk 0:00:35]} 22. Na5 {[%clk 0:00:30]}  Nc4 {[%clk 0:00:24]} 23. Nxc4 {[%clk 0:00:22]}  Rxc4 {[%clk 0:00:19]} 24. Nb3 {[%clk 0:00:20]}  Rcc8 {[%clk 0:00:11]} 25. Na5 {[%clk 0:00:19]}  Rb8 {[%clk 0:00:10]} 26. Bc7 {[%clk 0:00:17]}  Rbc8 {[%clk 0:00:10]} 27. Bb6 {[%clk 0:00:17]}  Rb8 {[%clk 0:00:10]} 28. f3 {[%clk 0:00:15]}  Rec8 {[%clk 0:00:09]} 29. Kf2 {[%clk 0:00:14]}  Kf8 {[%clk 0:00:05]} 30. g3 {[%clk 0:00:09]}  f6 {[%clk 0:00:05]} 31. Rd2 {[%clk 0:00:10]}  Kf7 {[%clk 0:00:05]} 32. Re1 {[%clk 0:00:10]}  Bf8 {[%clk 0:00:04]} 33. Rde2 {[%clk 0:00:10]}  Bf5 {[%clk 0:00:03]} 34. Nb3 {[%clk 0:00:09]}  Bd3 {[%clk 0:00:02]} 35. Rd2 {[%clk 0:00:08]}  Bc4 {[%clk 0:00:02]} 36. Nd4 {[%clk 0:00:08]}  Re8 {[%clk 0:00:00]} 37. b3 {[%clk 0:00:07]} 1-0


[Site "https://www.chess.com"]

[Event "Titled Tuesday Blitz August 22 Late 2023"]
[White "Jaskolka, Tomasz"]
[Black "rionelG"]
[WhiteFideId "1170791"]
[WhiteElo "2499"]
[BlackElo "2355"]
[Result "1-0"]
[Round "8"]
[TimeControl "180+1"]
[Date "2023.08.22"]
[WhiteClock "0:01:05"]
[BlackClock "0:00:00"]
[Board "103"]

1. e4 {[%clk 0:03:00]}  c5 {[%clk 0:02:57]} 2. Nf3 {[%clk 0:03:01]}  d6 {[%clk 0:02:57]} 3. Bb5+ {[%clk 0:03:01]}  Nd7 {[%clk 0:02:56]} 4. a4 {[%clk 0:03:01]}  a6 {[%clk 0:02:56]} 5. Bc4 {[%clk 0:03:01]}  Ne5 {[%clk 0:02:55]} 6. Nxe5 {[%clk 0:02:59]}  dxe5 {[%clk 0:02:56]} 7. Qh5 {[%clk 0:02:54]}  e6 {[%clk 0:02:40]} 8. Qxe5 {[%clk 0:02:52]}  Nf6 {[%clk 0:02:40]} 9. Nc3 {[%clk 0:02:49]}  Qd4 {[%clk 0:02:24]} 10. Qxd4 {[%clk 0:02:43]}  cxd4 {[%clk 0:02:23]} 11. Ne2 {[%clk 0:02:44]}  Nxe4 {[%clk 0:02:21]} 12. d3 {[%clk 0:02:22]}  Bb4+ {[%clk 0:02:09]} 13. Kf1 {[%clk 0:02:22]}  Nd6 {[%clk 0:01:58]} 14. Nxd4 {[%clk 0:02:22]}  Nxc4 {[%clk 0:01:58]} 15. dxc4 {[%clk 0:02:23]}  O-O {[%clk 0:01:56]} 16. c3 {[%clk 0:02:23]}  Be7 {[%clk 0:01:53]} 17. Be3 {[%clk 0:02:23]}  e5 {[%clk 0:01:49]} 18. Nf3 {[%clk 0:02:22]}  f6 {[%clk 0:01:46]} 19. Ke2 {[%clk 0:02:20]}  Be6 {[%clk 0:01:46]} 20. b3 {[%clk 0:02:20]}  b5 {[%clk 0:01:13]} 21. axb5 {[%clk 0:02:11]}  axb5 {[%clk 0:01:14]} 22. cxb5 {[%clk 0:02:12]}  Bxb3 {[%clk 0:01:13]} 23. Nd2 {[%clk 0:02:13]}  Bd5 {[%clk 0:01:10]} 24. f3 {[%clk 0:02:06]}  Rac8 {[%clk 0:01:07]} 25. Rhc1 {[%clk 0:02:03]}  Bc5 {[%clk 0:01:02]} 26. c4 {[%clk 0:01:52]}  Be6 {[%clk 0:00:53]} 27. Ra6 {[%clk 0:01:39]}  Kf7 {[%clk 0:00:52]} 28. Bxc5 {[%clk 0:01:32]}  Rxc5 {[%clk 0:00:52]} 29. Ne4 {[%clk 0:01:32]}  Bxc4+ {[%clk 0:00:21]} 30. Rxc4 {[%clk 0:01:30]}  Rxc4 {[%clk 0:00:20]} 31. Nd6+ {[%clk 0:01:31]}  Ke6 {[%clk 0:00:19]} 32. Nxc4+ {[%clk 0:01:32]}  Kd5 {[%clk 0:00:20]} 33. Nb6+ {[%clk 0:01:28]}  Kd6 {[%clk 0:00:18]} 34. Ra7 {[%clk 0:01:20]}  Rb8 {[%clk 0:00:15]} 35. Nc4+ {[%clk 0:01:21]}  Kc5 {[%clk 0:00:15]} 36. Rc7+ {[%clk 0:01:18]}  Kxb5 {[%clk 0:00:15]} 37. Nd6+ {[%clk 0:01:18]}  Kb6 {[%clk 0:00:14]} 38. Rxg7 {[%clk 0:01:18]}  Kc6 {[%clk 0:00:15]} 39. Ne4 {[%clk 0:01:16]}  f5 {[%clk 0:00:14]} 40. Nd2 {[%clk 0:01:13]}  Kd5 {[%clk 0:00:06]} 41. Rxh7 {[%clk 0:01:12]}  Rg8 {[%clk 0:00:05]} 42. g3 {[%clk 0:01:12]}  Rb8 {[%clk 0:00:05]} 43. h4 {[%clk 0:01:11]}  Ke6 {[%clk 0:00:04]} 44. Rh6+ {[%clk 0:01:09]}  Kf7 {[%clk 0:00:04]} 45. Ra6 {[%clk 0:01:09]}  Rb4 {[%clk 0:00:03]} 46. Kf2 {[%clk 0:01:08]}  Rd4 {[%clk 0:00:03]} 47. Nf1 {[%clk 0:01:08]}  Rb4 {[%clk 0:00:00]} 48. Ra2 {[%clk 0:01:05]} 1-0


[Site "https://www.chess.com"]

[Event "Titled Tuesday Blitz August 22 Late 2023"]
[White "Han, Yichen"]
[Black "Vafin, Ayrat"]
[WhiteFideId "1054430"]
[BlackFideId "4146530"]
[WhiteElo "2360"]
[BlackElo "2494"]
[Result "0-1"]
[Round "8"]
[TimeControl "180+1"]
[Date "2023.08.22"]
[WhiteClock "0:00:06"]
[BlackClock "0:00:12"]
[Board "104"]

1. e4 {[%clk 0:03:00]}  e5 {[%clk 0:02:59]} 2. Nf3 {[%clk 0:03:00]}  Nf6 {[%clk 0:02:59]} 3. Nc3 {[%clk 0:03:00]}  Bb4 {[%clk 0:02:59]} 4. Nxe5 {[%clk 0:02:54]}  O-O {[%clk 0:02:59]} 5. Be2 {[%clk 0:02:51]}  Re8 {[%clk 0:02:58]} 6. Nd3 {[%clk 0:02:50]}  Bxc3 {[%clk 0:02:58]} 7. dxc3 {[%clk 0:02:51]}  Nxe4 {[%clk 0:02:58]} 8. O-O {[%clk 0:02:51]}  d5 {[%clk 0:02:58]} 9. Nf4 {[%clk 0:02:51]}  c6 {[%clk 0:02:58]} 10. Bf3 {[%clk 0:02:51]}  Nd7 {[%clk 0:02:57]} 11. c4 {[%clk 0:02:40]}  dxc4 {[%clk 0:02:51]} 12. Qd4 {[%clk 0:02:38]}  Ng5 {[%clk 0:02:41]} 13. Be2 {[%clk 0:02:30]}  Ne5 {[%clk 0:02:02]} 14. Qc3 {[%clk 0:02:05]}  Ne4 {[%clk 0:01:57]} 15. Qa3 {[%clk 0:01:50]}  Bf5 {[%clk 0:01:53]} 16. Be3 {[%clk 0:01:49]}  Qh4 {[%clk 0:01:37]} 17. h3 {[%clk 0:01:28]}  b5 {[%clk 0:01:03]} 18. Rad1 {[%clk 0:01:20]}  Ng6 {[%clk 0:01:02]} 19. Nxg6 {[%clk 0:01:15]}  Bxg6 {[%clk 0:01:03]} 20. Bf3 {[%clk 0:01:11]}  a5 {[%clk 0:01:01]} 21. Bxe4 {[%clk 0:00:47]}  Bxe4 {[%clk 0:01:00]} 22. Qc5 {[%clk 0:00:43]}  Bd5 {[%clk 0:00:56]} 23. Rd4 {[%clk 0:00:43]}  Qf6 {[%clk 0:00:48]} 24. Rf4 {[%clk 0:00:37]}  Qe5 {[%clk 0:00:33]} 25. Rg4 {[%clk 0:00:33]}  Qe6 {[%clk 0:00:20]} 26. Qd4 {[%clk 0:00:28]}  g6 {[%clk 0:00:18]} 27. Qf4 {[%clk 0:00:21]}  f6 {[%clk 0:00:18]} 28. Qh6 {[%clk 0:00:18]}  Qf7 {[%clk 0:00:18]} 29. Qh4 {[%clk 0:00:09]}  Re6 {[%clk 0:00:17]} 30. Bd4 {[%clk 0:00:07]}  Rae8 {[%clk 0:00:17]} 31. Qg3 {[%clk 0:00:06]}  Re4 {[%clk 0:00:16]} 32. Rd1 {[%clk 0:00:05]}  Rxg4 {[%clk 0:00:15]} 33. Qxg4 {[%clk 0:00:06]}  Qe6 {[%clk 0:00:16]} 34. Qg3 {[%clk 0:00:06]}  Kf7 {[%clk 0:00:15]} 35. Qf4 {[%clk 0:00:05]}  Re7 {[%clk 0:00:14]} 36. Qh6 {[%clk 0:00:05]}  Kg8 {[%clk 0:00:15]} 37. Qf4 {[%clk 0:00:05]}  Kg7 {[%clk 0:00:14]} 38. h4 {[%clk 0:00:04]}  h5 {[%clk 0:00:14]} 39. Be3 {[%clk 0:00:05]}  Qe4 {[%clk 0:00:13]} 40. Qh6+ {[%clk 0:00:05]}  Kf7 {[%clk 0:00:13]} 41. Rd4 {[%clk 0:00:06]}  Qxg2# {[%clk 0:00:12]} 0-1


[Site "https://www.chess.com"]

[Event "Titled Tuesday Blitz August 22 Late 2023"]
[White "Urbina Perez, Juan Antonio"]
[Black "Senft, Sean"]
[WhiteFideId "2217368"]
[BlackFideId "2044960"]
[WhiteElo "2485"]
[BlackElo "2354"]
[Result "0-1"]
[Round "8"]
[TimeControl "180+1"]
[Date "2023.08.22"]
[WhiteClock "0:00:10"]
[BlackClock "0:00:04"]
[Board "105"]

1. e4 {[%clk 0:02:51]}  c5 {[%clk 0:02:59]} 2. Nf3 {[%clk 0:02:51]}  d6 {[%clk 0:03:00]} 3. Bb5+ {[%clk 0:02:47]}  Bd7 {[%clk 0:02:57]} 4. c4 {[%clk 0:02:46]}  g6 {[%clk 0:02:56]} 5. Nc3 {[%clk 0:02:46]}  Bg7 {[%clk 0:02:56]} 6. d3 {[%clk 0:02:46]}  e5 {[%clk 0:02:54]} 7. Be3 {[%clk 0:02:45]}  Ne7 {[%clk 0:02:55]} 8. Qd2 {[%clk 0:02:45]}  Nbc6 {[%clk 0:02:53]} 9. h3 {[%clk 0:02:42]}  Nd4 {[%clk 0:02:53]} 10. Bxd4 {[%clk 0:02:38]}  cxd4 {[%clk 0:02:51]} 11. Bxd7+ {[%clk 0:02:39]}  Qxd7 {[%clk 0:02:51]} 12. Nd5 {[%clk 0:02:38]}  Nxd5 {[%clk 0:02:50]} 13. cxd5 {[%clk 0:02:39]}  f5 {[%clk 0:02:48]} 14. O-O {[%clk 0:02:32]}  Bf6 {[%clk 0:02:38]} 15. Ng5 {[%clk 0:02:26]}  Bxg5 {[%clk 0:02:37]} 16. Qxg5 {[%clk 0:02:27]}  Qe7 {[%clk 0:02:33]} 17. Qh6 {[%clk 0:02:25]}  f4 {[%clk 0:02:15]} 18. f3 {[%clk 0:02:21]}  Qf8 {[%clk 0:02:12]} 19. Qh4 {[%clk 0:02:20]}  Qg7 {[%clk 0:02:06]} 20. Rfc1 {[%clk 0:02:16]}  O-O {[%clk 0:02:03]} 21. Rc2 {[%clk 0:02:16]}  Rac8 {[%clk 0:01:59]} 22. Rac1 {[%clk 0:02:16]}  Qd7 {[%clk 0:01:59]} 23. Kh2 {[%clk 0:02:13]}  Rxc2 {[%clk 0:01:59]} 24. Rxc2 {[%clk 0:02:13]}  Rc8 {[%clk 0:01:59]} 25. Rxc8+ {[%clk 0:02:14]}  Qxc8 {[%clk 0:01:59]} 26. Qf6 {[%clk 0:02:14]}  Qd7 {[%clk 0:01:55]} 27. b3 {[%clk 0:02:10]}  a5 {[%clk 0:01:53]} 28. a4 {[%clk 0:02:07]}  Qc7 {[%clk 0:01:48]} 29. Qe6+ {[%clk 0:02:05]}  Kg7 {[%clk 0:01:47]} 30. h4 {[%clk 0:02:06]}  Qd8 {[%clk 0:01:37]} 31. Kh3 {[%clk 0:02:04]}  Qb6 {[%clk 0:01:27]} 32. Kg4 {[%clk 0:01:49]}  h5+ {[%clk 0:01:23]} 33. Kh3 {[%clk 0:01:44]}  Qb4 {[%clk 0:01:22]} 34. Qe7+ {[%clk 0:01:41]}  Kg8 {[%clk 0:01:11]} 35. Qe8+ {[%clk 0:01:39]}  Kg7 {[%clk 0:01:11]} 36. Qe7+ {[%clk 0:01:38]}  Kg8 {[%clk 0:01:11]} 37. g3 {[%clk 0:01:38]}  Qe1 {[%clk 0:01:05]} 38. gxf4 {[%clk 0:01:24]}  Qh1+ {[%clk 0:00:56]} 39. Kg3 {[%clk 0:01:24]}  Qe1+ {[%clk 0:00:45]} 40. Kh3 {[%clk 0:01:22]}  exf4 {[%clk 0:00:45]} 41. Qd8+ {[%clk 0:01:16]}  Kf7 {[%clk 0:00:42]} 42. Qd7+ {[%clk 0:01:16]}  Kg8 {[%clk 0:00:40]} 43. Qe6+ {[%clk 0:01:15]}  Kh7 {[%clk 0:00:38]} 44. Qf7+ {[%clk 0:01:14]}  Kh6 {[%clk 0:00:37]} 45. Qxf4+ {[%clk 0:01:13]}  Kh7 {[%clk 0:00:36]} 46. Qf7+ {[%clk 0:01:10]}  Kh6 {[%clk 0:00:35]} 47. Qf8+ {[%clk 0:01:09]}  Kh7 {[%clk 0:00:35]} 48. Qf7+ {[%clk 0:01:09]}  Kh6 {[%clk 0:00:36]} 49. Qf4+ {[%clk 0:01:08]}  Kh7 {[%clk 0:00:36]} 50. Qg3 {[%clk 0:01:09]}  Qh1+ {[%clk 0:00:34]} 51. Qh2 {[%clk 0:01:06]}  Qxf3+ {[%clk 0:00:35]} 52. Qg3 {[%clk 0:01:06]}  Qh1+ {[%clk 0:00:30]} 53. Qh2 {[%clk 0:01:06]}  Qf1+ {[%clk 0:00:26]} 54. Qg2 {[%clk 0:00:53]}  Qxd3+ {[%clk 0:00:25]} 55. Kh2 {[%clk 0:00:53]}  Qe3 {[%clk 0:00:22]} 56. Qf1 {[%clk 0:00:47]}  Qd2+ {[%clk 0:00:12]} 57. Kh3 {[%clk 0:00:46]}  Qc3+ {[%clk 0:00:12]} 58. Kh2 {[%clk 0:00:45]}  d3 {[%clk 0:00:13]} 59. Qf7+ {[%clk 0:00:41]}  Qg7 {[%clk 0:00:14]} 60. Qf2 {[%clk 0:00:40]}  Qe5+ {[%clk 0:00:14]} 61. Kh1 {[%clk 0:00:39]}  Kg7 {[%clk 0:00:13]} 62. Qe3 {[%clk 0:00:36]}  Qa1+ {[%clk 0:00:13]} 63. Kh2 {[%clk 0:00:36]}  Qb2+ {[%clk 0:00:13]} 64. Kh3 {[%clk 0:00:35]}  d2 {[%clk 0:00:14]} 65. Qf3 {[%clk 0:00:25]}  Qa1 {[%clk 0:00:07]} 66. e5 {[%clk 0:00:18]}  Qxe5 {[%clk 0:00:04]} 67. Qd1 {[%clk 0:00:17]}  Qe3+ {[%clk 0:00:04]} 68. Kg2 {[%clk 0:00:17]}  Qe1 {[%clk 0:00:04]} 69. Qf3 {[%clk 0:00:12]}  d1=Q {[%clk 0:00:04]} 70. Qf4 {[%clk 0:00:10]}  Qde2+ {[%clk 0:00:04]} 71. Kh3 {[%clk 0:00:09]}  Qh1+ {[%clk 0:00:03]} 72. Kg3 {[%clk 0:00:10]}  Qhg2# {[%clk 0:00:04]} 0-1


[Site "https://www.chess.com"]